Cogmind - Beta 12 @@@ ROGUE MODE // 2023.03.30 @ 23:09:43 Player: Jezoensis Result: Destroyed by D-53 Grenadier with Mini Grenade Launcher Performance ------------- Evolutions (0) 0 Regions Visited (2) 400 Robots Destroyed (16) 80 Value Destroyed (254) 254 Prototype IDs (0) 0 Alien Tech Used (0) 0 Bonus (0) 0 TOTAL SCORE: 734 Bonus ------- None Cogmind --------- Core Integrity 0/250 Matter 220/300 Energy 195/250 System Corruption 1% Temperature Cool (0) Movement Rolling (115) Ox1 Location -10/Mines Parts ------- > --- POWER (1) -------- Ion Engine > --- PROPULSION (2) --- Light Treads Compact Wheel > --- UTILITY (2) ------ Large Storage Unit > --- WEAPON (2) ------- EMP Blaster Grenade Launcher > --- INVENTORY (15) --- Wheel High-capacity Storage Unit High-capacity Matter Pod (200) Improved Terrain Scanner Terrain Scan Processor Seismic Detector Medium Laser Small Laser Particle Gun Assault Rifle Light Assault Rifle EMP Blaster Mining Laser Peak State ------------ > --- POWER ------------ Ion Engine > --- PROPULSION ------- Light Treads Wheel > --- UTILITY ---------- Large Storage Unit Improved Terrain Scanner > --- WEAPON ----------- EMP Blaster EMP Blaster > --- INVENTORY -------- Light Treads Wheel Compact Wheel High-capacity Storage Unit Medium Matter Pod Terrain Scan Processor Medium Laser Small Laser Assault Rifle Light Assault Rifle Grenade Launcher Mining Laser [Rating: 12] Favorites ----------- Power Ion Engine Engine Ion Engine Propulsion Wheel Treads Light Treads Wheel Wheel Utility Large Storage Unit Device Improved Terrain Scanner Storage Large Storage Unit Processor Targeting Computer Weapon Assault Rifle Energy Gun Medium Laser Ballistic Gun Assault Rifle Launcher EMP Blaster Special Weapon Mining Laser Build | -11 -10 -10 ------- Run | Jun Mat Min Slots Evolved . | . . . Power . | . . . Propulsion . | . . . Utility . | . . . Weapon . | . . . Parts Attached 34 | 8 14 12 Power 3 | 1 1 1 Engine 3 | 1 1 1 Core . | . . . Reactor . | . . . Propulsion 12 | 3 3 6 Treads 5 | . 2 3 Leg . | . . . Wheel 7 | 3 1 3 Hover . | . . . Flight . | . . . Utility 6 | 2 3 1 Device 3 | 1 1 1 Storage 2 | 1 1 . Processor 1 | . 1 . Hackware . | . . . Protection . | . . . Artifact . | . . . Weapon 13 | 2 7 4 Energy Gun 2 | . 2 . Energy Cannon . | . . . Ballistic Gun 5 | 2 1 2 Ballistic Cannon . | . . . Launcher 5 | . 3 2 Special Weapon 1 | . 1 . Impact Weapon . | . . . Slashing Weapon . | . . . Piercing Weapon . | . . . Special Melee Weapon . | . . . Unidentified Prototypes . | . . . Parts Lost 6 | . 2 4 Power 2 | . 2 . Propulsion 3 | . . 3 Utility 1 | . . 1 Weapon . | . . . Highest Loss Streak 3 | . 1 3 To Critical Strikes . | . . . Average Slot Usage (%) 96 | . 98 93 Engine 10 | . 13 8 Treads 2 | . 2 1 Wheel 25 | . 25 26 Device 13 | . 12 14 Storage 14 | . 14 14 Energy Gun 2 | . 5 . Ballistic Gun 21 | . 16 25 Launcher 3 | . 4 2 Special Weapon 1 | . 2 . Naked Turns . | . . . Heaviest Build 33 | 12 31 33 Greatest Support 20 | 20 20 20 Greatest Overweight (x) 3 | . 2 3 Average Overweight (x) . | . 1 1 Largest Inventory Capacity 15 | 8 15 15 Average Capacity 13 | 6 14 15 Most Carried 15 | 6 13 15 Average Carried 11 | 4 11 13 Final Capacity 15 | 8 15 15 Final Carried 13 | 6 12 13 Class Distribution -------------------- 100% | Mutant Dominant Class ---------------- Mutant | -10/Materials Mutant | -10/Mines Resources | -11 -10 -10 ----------- Run | Jun Mat Min Matter Collected 865 | 316 144 405 Remotely . | . . . Salvage Created 496 | 153 215 128 Parts 33 | 8 16 9 Haulers Intercepted . | . . . Recyclers Shooed 1 | . 1 . Parts Field Recycled . | . . . Retrieved Matter . | . . . Parts Self-Destructed . | . . . Prevented . | . . . Kills | -11 -10 -10 ------- Run | Jun Mat Min Combat Hostiles Destroyed 9 | . 6 3 Guns 5 | . 3 2 AOE 4 | . 3 1 Classes Destroyed 7 | 2 4 1 Worker 2 | . 1 1 Builder 1 | . 1 . Tunneler 4 | 3 . 1 Recycler 1 | 1 . . Swarmer 3 | . 3 . Grunt 5 | . 3 2 Assembled 1 | . . 1 Best Kill Streak 5 | 2 5 2 Combat Bots Only 4 | . 4 2 Max Kills in Single Turn 2 | 1 2 1 Gunslinging . | . . . Exploded 2 | . 2 1 Melee . | . . . Uniques/NPCs Destroyed . | . . . Combat | -11 -10 -10 -------- Run | Jun Mat Min Damage Taken 887 | . 359 528 Core 250 | . 145 105 Absorbed by Shields . | . . . Core Remaining (%) 100 | 100 . . Volleys Fired 45 | 9 15 21 Largest 2 | 2 2 2 Hottest 100 | 40 100 63 Shots Fired 80 | 18 20 42 Gun 67 | 18 11 38 Cannon . | . . . Launcher 11 | . 7 4 Special 2 | . 2 . Kinetic 64 | 18 8 38 Thermal 5 | . 5 . Explosive 2 | . . 2 Electromagnetic 9 | . 7 2 Robot Hit Streak 11 | 11 4 7 Robot Miss Streak 3 | 2 3 3 Penetration Max . | . . . Secondary Targets 1 | . . 1 Max Gunslinging Chain 1 | . . 1 Shots Hit Robots 50 | 14 7 29 Core Hits 33 | 6 9 18 Critical Kills . | . . . Critical Parts Destroyed . | . . . Critical Strikes 1 | . 1 . Burn 1 | . 1 . Melee Attacks . | . . . Impact . | . . . Slashing . | . . . Piercing . | . . . Sneak Attacks . | . . . Combat Hostiles . | . . . Follow-up Attacks . | . . . Damage Inflicted 1074 | 169 291 614 Guns 553 | 169 95 289 Cannons . | . . . Explosions 521 | . 196 325 Melee . | . . . Ramming . | . . . Kinetic 527 | 169 69 289 Thermal 65 | . 65 . Explosive 219 | . . 219 Electromagnetic 263 | . 157 106 Impact . | . . . Slashing . | . . . Piercing . | . . . Highest Corruption 1 | . 1 1 Average Corruption 1 | . 1 1 Corruption Purged . | . . . Corruption Blocked . | . . . Effects 3 | . . 3 Message Errors 1 | . . 1 Matter Fused 1 | . . 1 Energy Discharges 1 | . . 1 Overload Shots . | . . . Overflow Damage 17 | . . 17 Projectiles . | . . . Explosions 17 | . . 17 Melee . | . . . Knockbacks . | . . . Impact . | . . . Kinetic . | . . . Secondary . | . . . Self-Inflicted Damage 47 | . 40 7 Shots 6 | . 5 1 Rammed . | . . . Targets Rammed . | . . . Kicked . | . . . Crushed . | . . . Highest Temperature 55 | . 55 22 Average Temperature 15 | . 19 5 Received Heat Transfer 195 | . 42 153 Siege Activations . | . . . Robots Corrupted . | . . . Combat Hostiles . | . . . Parts Fried 2 | . 2 . Impact Corruptions . | . . . Robots Melted . | . . . Combat Hostiles . | . . . Parts Melted . | . . . Heat Transferred 198 | . 198 . Parts Sabotaged . | . . . Parts Stolen . | . . . Parts Stripped . | . . . Power Chain Reactions 2 | . 2 . Missiles Intercepted . | . . . Alert | -11 -10 -10 ------- Run | Jun Mat Min Peak Influence 230 | 20 230 144 Initial 89 | . 13 89 Average 99 | 8 100 121 Maximum Alert Level 1 | . 1 . Low Security (%) 95 | 100 89 100 Level 1 4 | . 10 . Level 2 . | . . . Level 3 . | . . . Level 4 . | . . . Level 5 . | . . . High Security . | . . . Max Security . | . . . Squads Dispatched 4 | . 4 . Investigation 3 | . 3 . Extermination . | . . . Reinforcement 1 | . 1 . Assault . | . . . Garrison . | . . . Intercept . | . . . Searches Triggered . | . . . Construction Impeded . | . . . Haulers Reinforced . | . . . Active Scanning Responses . | . . . Cargo Convoy Interrupts . | . . . Stealth | -11 -10 -10 --------- Run | Jun Mat Min Distress Signals 1 | . 1 . Communications Jammed . | . . . Distress Signals . | . . . Times Spotted 27 | . 14 13 Peak Tracking Total 9 | . 4 9 Tactical Retreats 2 | . 1 1 Traps | -11 -10 -10 ------- Run | Jun Mat Min Traps Triggered 1 | . 1 . Indirectly . | . . . Trap Hack Attempts . | . . . Triggered . | . . . Disarmed . | . . . Reprogrammed . | . . . Reused . | . . . Traps Extracted . | . . . Installed . | . . . Triggered . | . . . Machines | -11 -10 -10 ---------- Run | Jun Mat Min Machines Disabled . | . . . Max in Single Turn . | . . . Machines Repaired . | . . . Machines Sabotaged . | . . . Overloaded Fab Kills . | . . . Hacking | -11 -10 -10 --------- Run | Jun Mat Min Machines Accessed 3 | . 3 . Terminals 2 | . 2 . Fabricators . | . . . Repair Stations . | . . . Recycling Units 1 | . 1 . Scanalyzers . | . . . Garrison Access . | . . . Total Hacks 7 | . 7 . Successful 2 | . 2 . Failed 5 | . 5 . Catastrophic 1 | . 1 . Database Lockouts . | . . . Manual 7 | . 7 . Terminals 6 | . 6 . Fabricators . | . . . Repair Stations . | . . . Recycling Units 1 | . 1 . Scanalyzers . | . . . Garrison Access . | . . . Terminal Hacks 1 | . 1 . Robot Analysis 1 | . 1 . Fabricator Hacks . | . . . Repair Station Hacks . | . . . Recycling Unit Hacks . | . . . Scanalyzer . | . . . Garrison Access Hacks . | . . . Unauthorized Hacks 1 | . 1 . Terminals . | . . . Fabricators . | . . . Repair Stations . | . . . Recycling Units 1 | . 1 . Tunnel 1 | . 1 . Scanalyzers . | . . . Garrison Access . | . . . Data Cores Recovered . | . . . Used . | . . . Hacking Detections 2 | . 2 . Full Trace Events 1 | . 1 . Feedback Events . | . . . Feedback Blocked . | . . . Robot Schematics Acquired . | . . . Robots Built . | . . . Authchips . | . . . Time . | . . . Total Robot Build Rating . | . . . Part Schematics Acquired . | . . . Parts Built . | . . . Authchips . | . . . Time . | . . . Total Part Build Rating . | . . . Parts Repaired . | . . . Time . | . . . Parts Recycled . | . . . Recycled Matter . | . . . Retrieved Matter . | . . . Retrieved Components . | . . . Parts Scanalyzed . | . . . Part Schematics Acquired . | . . . Parts Damaged . | . . . Bothacking | -11 -10 -10 ------------ Run | Jun Mat Min Used RIF Installer . | . . . Robots Hacked . | . . . Non-combat . | . . . Combat . | . . . Robot Hacks Applied . | . . . Relay Couplers Released . | . . . Fabnet Peak Effective % . | . . . Robots Rewired . | . . . Allies Hacked . | . . . Hacks Repelled . | . . . Allies | -11 -10 -10 -------- Run | Jun Mat Min Total Allies . | . . . Largest Group . | . . . Highest-Rated Group . | . . . Highest-Rated Ally . | . . . Total Orders . | . . . Ally Attacks . | . . . Total Damage . | . . . Kills . | . . . Allies Corrupted . | . . . Allies Melted . | . . . Intel | -11 -10 -10 ------- Run | Jun Mat Min Robot Analysis Total 1 | . 1 . Derelict Logs Recovered . | . . . Drone Launches . | . . . Drone Recoveries . | . . . Exploration | -11 -10 -10 ------------- Run | Jun Mat Min Turns Passed 698 | 83 284 331 Spaces Moved 542 | 56 226 260 Core 21 | 21 . . Treads . | . . . Legs . | . . . Wheels 521 | 35 226 260 Hover . | . . . Flight . | . . . Fastest Speed 50 | 50 80 95 Average Speed 92 | 68 95 95 Slowest Speed 130 | 80 110 130 Overloaded Moves . | . . . Propulsion Burnouts . | . . . Robots Hopped . | . . . Cave-ins Triggered . | . . . Exploration Rate (%) 37 | 4 43 64 Regions Visited 2 Branch Regions 1 Pre-discovered Areas 1 | . 1 . Known Exits Taken . | . . . Unknown Exits Taken 2 | 1 1 . Scrap Searched . | . . . Spaces Dug 2 | . 2 . Terrain Destroyed 21 | . 6 15 Melee . | . . . Projectile 2 | . 2 . AOE 19 | . 4 15 Terrain Rammed . | . . . Walls Destroyed . | . . . Machines Disabled . | . . . Actions | -11 -10 -10 --------- Run | Jun Mat Min Total 646 | 82 264 300 Wait 2 | 1 . 1 Move 540 | 55 225 260 Hop . | . . . Pick Up 21 | 8 8 5 Fast Attach 6 | 5 . 1 Attach 7 | 2 2 3 Detach 1 | . 1 . Swap 21 | 1 12 8 Drop 3 | 1 1 1 Fire 45 | 9 15 21 Melee . | . . . Ram . | . . . Kick . | . . . Crush . | . . . Escape Stasis . | . . . Rewire . | . . . Trap . | . . . Miscellaneous . | . . . Route ------- -11/Junkyard -10/Materials (discovered 2 exits: [*Mat] / [*Min]) -10/Mines (discovered 2 exits: [*Mat x2]) History --------- Turn | Location | Event 12 | -11/Junkyard | Discovered new exit (range 15) 84 | -11/Junkyard | Entered Materials 229 | -10/Materials | Discovered new exit (range 12) 317 | -10/Materials | Build established: Mutant 343 | -10/Materials | Core integrity fell below 50% 353 | -10/Materials | Discovered new exit (range 15) 368 | -10/Materials | Entered Mines 414 | -10/Mines | Discovered new exit (range 9) 655 | -10/Mines | Discovered new exit (range 9) 669 | -10/Mines | Assembled infested the area 698 | -10/Mines | Core integrity fell below 20% 699 | -10/Mines | Destroyed by D-53 Grenadier with Mini Grenade Launcher Last Messages --------------- 00655_ EXIT=FOUND 00669_ ALERT: Infestation in the mines, dispatching Demolisher response squad. 00677_ T-07 Excavator destroyed. 00685_ Wheel destroyed. 00686_ as-26962 powers down. 00686_ as-95473 destroyed. 00686_ Destroyed Asb. F-torch. 00687_ as-50227 destroyed. 00687_ as-04467 destroyed. 00687_ as-74670 destroyed. 00687_ as-96271 destroyed. 00690_ The unstable cave ceiling collapses. 00691_ as-20060 destroyed. 00695_ Wheel destroyed. 00695_ U-05 Engineer destroyed. 00697_ The unstable cave ceiling collapses. 00698_ as-26962 destroyed. 00699_ The unstable cave ceiling collapses. 00699_ Imp. Heat Sink destroyed. Map ----- +----------------------------------------------------+ | | | | | | | | | ?????????????????????????????????????????????????? | | ?????????????????????????????????????????????????? | | ??????????????????????????????????????#??????????? | | ????????????????????????????????????????????###### | | ??????????????????????????????????#?????????# # | | ??????????????????????????????????????????## | | ?????????????????????????????????????????## < | | ??????????????????????????????????????#?## | | ???????????????????????????????????????## | | ???????????????????????????????????????# | | ?????????????????????????? ?????????#??# | | ???????????????????????????????????? ??# #?? | | ???????????????????????????????????? ??## ##?? | | ???????????????????????????????????# #??### ###??? | | ???????????????????????????????????# ###### ###### | | ???????????????????????????????????# # # | | ???????????????????????????????????# # ######### # | | ??????????????????##########???????# # #???????# # | | ??????????????## ## ######### # #???????# # | | ??????????????# # ## # #???????# # | | ??????????????# % #?#?????# | | ??????????????????# d @ !d #???????### | | ??????????????????## a #####?????????? | | ??????????????????# ####??????????#??? | | ??????????????????## #????????????????# | | ???????????????????# # ##???#??????????## | | ???????????????????##### ## ##???????????????# | | ???????????????????????##?######???????#????????# | | ????????????????????????????????????????????????## | | ?????????????????#???????????###?????????????????# | | ???????????????????????????## ##???????#???###### | | ???????????????????????????# #???????????# | | ??????????????????????????## ##???#??????# #### | | ???????????????#?#????###### #????#?????# ##?? | | ??????#??????????????## ## #????????#?# #??? | | ????????????#????????# #??????????# #??? | | ??#??????????????????# #?#????????## #??? | | ?????????#??#?######## #?#??????????# #??? | | ????????####??# ##????????????# #??? | | ???????## ##?# ##?????????????# #??? | | ???????# ### ### ## ##?#?????#??????# #??? | | ???????# # ## ## #???????????????# #??? | | ?#?????# ##""" ## ### ##??????#??#????# #??? | | ???????# ###""" ## #?# ###????#??#????# #??? | | ??????## ###""" ## ### ##???????????# #??? | | #????## ##""" ## ######??????# #??? | +----------------------------------------------------+ Best States ------------- Heat Dissipation 39 Energy Generation 10 Energy Capacity 250 Matter Stores 300 Matter Capacity 300 Sight Range 16 Terrain Scan Range 16 Terrain Scan Density 10 Evasion (%) 50 Targeting Accuracy 5 Recoil Reduction 1 Item Schematics ----------------- None Robot Schematics ------------------ None Fabricated ------------ Nothing Alien Tech Used ----------------- None Achievements -------------- None Challenges ------------ None Game ------ Seed MeleeMatterBlade Manual? 0 Play Time 00:10:37 Cumulative 907.1 hours Start 2023.03.30 @ 22:56:07 End 2023.03.30 @ 23:09:43 Sessions 1 Manual Loads 0 Difficulty Rogue Special Mode None Game No. 475 Rogue 348 Adventurer 125 Explorer 2 Win Type - Total 107 Types 85/8/7/2/2/0/0/2/1 Lore% 85 Gallery% 90 Achievement% 82 Wizard Run 0 Options --------- ASCII 0 Keyboard 1 Movement Numpad Keybinds 0 Fullscreen 1 Font 36/TerminusFine Map View 76x50 Tactical HUD 1 Map Filters NONE Filters NONE Steam 1 RUN: 9980e0e9-c010-4b47-94c1-8ce102b7608b